fUST/lending_fUST_20240826
["ID","MTS","AMOUNT","RATE_DAILY","PERIOD"]
[336060456,1724683861608,-698.05,0.0001261,2]
[336060457,1724683861618,-500.0,0.0001261,2]
[336060458,1724683861627,-527.47,0.0001261,2]
[336060459,1724683861637,-660.48,0.0001261,2]
[336060460,1724683861646,-500.0,0.0001261,2]
[336060461,1724683861656,-878.7,0.0001261,2]
[336060462,1724683861665,-500.0,0.0001261,2]
[336060463,1724683861674,-578.92,0.0001261,2]
[336060464,1724683861684,-500.0,0.0001261,2]
[336060465,1724683861693,-968.71,0.0001261,2]
[336060466,1724683861703,-948.05,0.0001261,2]
[336060467,1724683861712,-500.0,0.0001261,2]
[336060468,1724683861722,-1034.7,0.0001261,2]
[336060469,1724683861731,-803.26,0.0001261,2]
[336060470,1724683861741,-500.0,0.0001261,2]
[336060471,1724683861751,-909.82,0.0001261,2]
[336060472,1724683861761,-500.0,0.0001261,2]
[336060473,1724683861770,-510.65,0.0001261,2]
[336060474,1724683861779,-500.0,0.0001261,2]
[336060475,1724683861790,-571.43,0.0001261,2]
[336060476,1724683861800,-500.0,0.00012611,2]
[336060477,1724683861810,-500.0,0.00012611,2]
[336060478,1724683861819,-500.0,0.00012611,2]
[336060479,1724683861829,-500.0,0.00012611,2]
[336060480,1724683861842,-500.0,0.00012611,2]
[336060481,1724683861852,-500.0,0.00012611,2]
[336060482,1724683861861,-500.0,0.00012611,2]
[336060483,1724683861870,-500.0,0.00012611,2]
[336060484,1724683861879,-500.0,0.00012611,2]
[336060485,1724683861888,-500.0,0.00012611,2]
[336060486,1724683861898,-986.49,0.00012611,2]
[336060487,1724683861907,-500.0,0.00012611,2]
[336060488,1724683861917,-500.0,0.00012611,2]
[336060489,1724683861926,-500.0,0.00012611,2]
[336060490,1724683861935,-151.0,0.00012611,2]
[336060491,1724683861944,-500.0,0.00012611,2]
[336060492,1724683861954,-816.926435,0.00012611,2]
[336060493,1724683861963,-816.926435,0.00012611,2]
[336060494,1724683861972,-559.5,0.00012611,2]
[336060495,1724683861982,-500.0,0.00012611,2]
[336060496,1724683861991,-500.0,0.00012611,2]
[336060497,1724683862000,-500.0,0.00012611,2]
[336060498,1724683862010,-912.43,0.00012611,2]
[336060499,1724683862019,-500.0,0.00012611,2]
[336060500,1724683862028,-612.67,0.00012611,2]
[336060501,1724683862192,-500.0,0.00012611,2]
[336060502,1724683862202,-500.0,0.00012611,2]
[336060503,1724683862211,-381.7653579,0.00012611,2]
[336060504,1724683862221,-500.0,0.00012611,2]
[336060505,1724683862231,-500.0,0.00012611,2]
[336060506,1724683862240,-634.45,0.00012611,2]
[336060507,1724683862249,-506.2,0.00012611,2]
[336060508,1724683862259,-532.0133485,0.00012611,2]
[336060509,1724683862268,-500.0,0.00012611,2]
[336060510,1724683862277,-500.0,0.00012611,2]
[336060511,1724683862286,-534.77,0.00012611,2]
[336060512,1724683862295,-796.24,0.00012611,2]
[336060513,1724683862305,-500.0,0.00012611,2]
[336060514,1724683862315,-500.0,0.00012611,2]
[336060515,1724683862326,-1055.34,0.00012611,2]
[336060516,1724683862335,-667.58,0.00012611,2]
[336060517,1724683862346,-564.59,0.00012611,2]
[336060518,1724683862355,-500.0,0.00012611,2]
[336060519,1724683862365,-500.0,0.00012611,2]
[336060520,1724683862374,-648.51,0.00012611,2]
[336060521,1724683862383,-500.0,0.00012611,2]
[336060522,1724683862392,-500.0,0.00012611,2]
[336060523,1724683862402,-1018.16,0.00012611,2]
[336060524,1724683862411,-801.7,0.00012611,2]
[336060525,1724683862420,-571.24,0.00012611,2]
[336060526,1724683862430,-597.01,0.00012611,2]
[336060527,1724683862439,-693.59,0.00012611,2]
[336060528,1724683862449,-500.0,0.00012611,2]
[336060529,1724683862459,-500.0,0.00012611,2]
[336060530,1724683862469,-659.57,0.00012611,2]
[336060531,1724683862478,-851.78,0.00012611,2]
[336060532,1724683862488,-569.92,0.00012611,2]
[336060533,1724683862497,-500.0,0.00012611,2]
[336060534,1724683862508,-798.87,0.00012611,2]
[336060535,1724683862517,-500.0,0.00012611,2]
[336060536,1724683862527,-500.0,0.00012611,2]
[336060537,1724683862538,-605.54,0.00012611,2]
[336060538,1724683862548,-500.0,0.00012611,2]
[336060539,1724683862558,-556.37,0.00012611,2]
[336060540,1724683862568,-590.44,0.00012611,2]
[336060541,1724683862577,-556.97,0.00012611,2]
[336060542,1724683862587,-526.66,0.00012611,2]
[336060543,1724683862601,-500.0,0.00012611,2]
[336060544,1724683862611,-500.0,0.00012611,2]
[336060545,1724683862620,-500.0,0.00012611,2]
[336060546,1724683862629,-515.44,0.00012611,2]
[336060547,1724683862640,-500.0,0.00012611,2]
[336060548,1724683862648,-500.0,0.00012611,2]
[336060549,1724683862657,-555.75,0.00012611,2]
[336060550,1724683862666,-501.02,0.00012611,2]
[336060551,1724683862675,-553.63673576,0.00012611,2]
[336060552,1724683862684,-500.0,0.00012611,2]
[336060553,1724683862693,-576.61,0.00012611,2]
[336060554,1724683862702,-671.37,0.00012611,2]
[336060555,1724683862711,-500.0,0.00012611,2]
[336060556,1724683862721,-937.68,0.00012611,2]
[336060557,1724683862730,-500.0,0.00012611,2]
[336060558,1724683862739,-500.0,0.00012611,2]
[336060559,1724683862750,-500.0,0.00012611,2]
[336060560,1724683862760,-500.0,0.00012611,2]
[336060561,1724683862769,-875.15,0.00012611,2]
[336060562,1724683862778,-560.77,0.00012611,2]
[336060563,1724683862787,-551.64,0.00012611,2]
[336060564,1724683862797,-500.0,0.00012611,2]
[336060565,1724683862806,-500.0,0.00012611,2]
[336060566,1724683862816,-688.56,0.00012611,2]
[336060567,1724683862826,-602.82,0.00012611,2]
[336060568,1724683862836,-521.04,0.00012611,2]
[336060569,1724683862846,-500.0,0.00012611,2]
[336060570,1724683862855,-500.0,0.00012611,2]
[336060571,1724683862864,-500.0,0.00012611,2]
[336060572,1724683862874,-500.0,0.00012611,2]
[336060573,1724683862882,-500.0,0.00012611,2]
[336060574,1724683862892,-442.40203144,0.00012611,2]
[336060575,1724683862902,-500.0,0.00012611,2]
[336060576,1724683862911,-500.0,0.00012611,2]
[336060577,1724683862921,-500.0,0.00012611,2]
[336060578,1724683862930,-609.40391507,0.00012611,2]
[336060579,1724683862940,-568.47,0.00012611,2]
[336060580,1724683862949,-500.0,0.00012611,2]
[336060581,1724683862958,-500.0,0.00012611,2]
[336060582,1724683862967,-717.04,0.00012611,2]
[336060583,1724683862977,-500.0,0.00012611,2]
[336060584,1724683862986,-500.0,0.00012611,2]
[336060585,1724683862996,-500.0,0.00012611,2]
[336060586,1724683863005,-603.73,0.00012611,2]
[336060587,1724683863015,-500.0,0.00012611,2]
[336060588,1724683863025,-575.68,0.00012611,2]
[336060589,1724683863035,-500.0,0.00012611,2]
[336060590,1724683863045,-500.0,0.00012611,2]
[336060591,1724683863054,-500.0,0.00012611,2]
[336060592,1724683863064,-500.0,0.00012611,2]
[336060593,1724683863073,-500.0,0.00012611,2]
[336060594,1724683863083,-500.0,0.00012611,2]
[336060595,1724683863095,-565.23,0.00012611,2]
[336060596,1724683863108,-725.39,0.00012611,2]
[336060597,1724683863117,-500.0,0.00012611,2]
[336060598,1724683863127,-567.2,0.00012611,2]
[336060599,1724683863136,-500.0,0.00012611,2]
[336060600,1724683863147,-500.0,0.00012611,2]
[336060601,1724683863162,-835.77,0.00012611,2]
[336060602,1724683863172,-500.0,0.00012611,2]
[336060603,1724683863181,-500.0,0.00012611,2]
[336060604,1724683863191,-530.62,0.00012611,2]
[336060605,1724683863200,-537.49,0.00012611,2]
[336060606,1724683863210,-500.0,0.00012611,2]
[336060607,1724683863220,-732.91,0.00012611,2]
[336060608,1724683863232,-500.0,0.00012611,2]
[336060609,1724683863242,-743.84,0.00012611,2]
[336060610,1724683863252,-771.69,0.00012611,2]
[336060611,1724683863262,-500.0,0.00012611,2]
[336060612,1724683863272,-500.0,0.00012611,2]
[336060613,1724683863282,-813.79,0.00012611,2]
[336060614,1724683863293,-500.0,0.00012611,2]
[336060615,1724683863303,-591.55,0.00012611,2]
[336060616,1724683863312,-534.86,0.00012611,2]
[336060617,1724683863323,-151.0,0.00012611,2]
[336060618,1724683863333,-1307.79,0.00012611,2]
[336060619,1724683863346,-905.98,0.00012611,2]
[336060620,1724683863356,-577.78,0.00012611,2]
[336060621,1724683863365,-753.43,0.00012611,2]
[336060622,1724683863375,-278.38266,0.00012611,2]
[336060623,1724683863386,-278.38266,0.00012611,2]
[336060624,1724683863395,-910.6,0.00012611,2]
[336060625,1724683863405,-151.0,0.00012611,2]
[336060626,1724683863414,-344.957951,0.00012611,2]
[336060627,1724683863423,-344.957951,0.00012611,2]
[336060628,1724683863433,-500.0,0.00012611,2]
[336060629,1724683863443,-286.256871,0.00012611,2]
[336060630,1724683863452,-500.0,0.00012611,2]
[336060631,1724683863462,-509.942933,0.00012611,2]
[336060632,1724683863472,-1638.55289231,0.00012612,5]
[336060633,1724683863482,-151.0,0.00012612,2]
[336060634,1724683863491,-151.0,0.00012612,2]
[336060635,1724683863500,-500.0,0.00012612,2]
[336060636,1724683863510,-500.0,0.00012612,2]
[336060637,1724683863520,-736.46,0.00012612,2]
[336060638,1724683863529,-703.27,0.00012612,2]
[336060639,1724683863539,-888.47,0.00012612,2]
[336060640,1724683863548,-597.66,0.00012612,2]
[336060641,1724683863558,-750.02,0.00012612,2]
[336060642,1724683863567,-500.0,0.00012612,2]
[336060643,1724683863577,-917.73,0.00012612,2]
[336060644,1724683863587,-500.0,0.00012612,2]
[336060645,1724683863600,-1318.79,0.00012612,2]
[336060646,1724683863610,-500.0,0.00012612,2]
[336060647,1724683863620,-500.0,0.00012612,2]
[336060648,1724683863629,-500.0,0.00012612,2]
[336060649,1724683863639,-500.0,0.00012612,2]
[336060650,1724683863648,-500.0,0.00012612,2]
[336060651,1724683863658,-500.0,0.00012612,2]
[336060652,1724683863667,-500.0,0.00012612,2]
[336060653,1724683863677,-500.0,0.00012612,2]
[336060654,1724683863686,-500.0,0.00012612,2]
[336060655,1724683863696,-500.0,0.00012612,2]
[336060656,1724683863706,-741.14,0.00012612,2]
[336060657,1724683863715,-644.67,0.00012612,2]
[336060658,1724683863724,-500.0,0.00012612,2]
[336060659,1724683863734,-797.985286,0.00012613,2]
[336060660,1724683863744,-797.985286,0.00012613,2]
[336060661,1724683863753,-152.663038,0.00012613,2]
[336060662,1724683863763,-152.663038,0.00012613,2]
[336060663,1724683863773,-151.0,0.00012613,2]
[336060664,1724683863783,-277.083759,0.00012613,2]
[336060665,1724683863792,-277.083759,0.00012613,2]
[336060666,1724683863801,-695.28989851,0.00012629,2]
[336060667,1724683863811,-420.0,0.00012662,2]
[336060668,1724683863820,-600.0,0.00012714,2]
[336060669,1724683863829,-524.143,0.00012721,2]
[336060670,1724683863838,-150.0,0.00012721,2]
[336060671,1724683863850,-218.0063828,0.00012779,2]
[336060672,1724683863860,-154.72922386,0.00012782,2]
[336060673,1724683863869,-154.72922386,0.00012782,2]
[336060674,1724683863879,-330.6880762,0.00012795,2]
[336060675,1724683863888,-604.0,0.000128,2]
[336060676,1724683863898,-151.0,0.000128,2]
[336060677,1724683863908,-151.0,0.000128,2]
[336060678,1724683863918,-1524.013689,0.000128,2]
[336060679,1724683863929,-1524.013689,0.000128,2]
[336060680,1724683863938,-396.79346,0.000128,2]
[336060681,1724683863948,-396.79346,0.000128,2]
[336060682,1724683863957,-181.885244,0.000128,2]
[336060683,1724683863966,-181.885244,0.000128,2]
[336060684,1724683863975,-1788.730655,0.000128,2]
[336060685,1724683863985,-1788.730655,0.000128,2]
[336060686,1724683863995,-2073.785835,0.000128,2]
[336060687,1724683864004,-2073.785835,0.000128,2]
[336060688,1724683864014,-600.0,0.00012845,2]
[336060689,1724683864023,-1059.92669404,0.0001285,2]
[336060690,1724683864033,-154.74467129,0.00012873,2]
[336060691,1724683864042,-500.0,0.00012873,2]
[336060692,1724683864052,-500.0,0.00012873,2]
[336060693,1724683864061,-500.0,0.00012882,2]
[336060694,1724683864070,-573.81,0.00012882,2]
[336060695,1724683864080,-500.0,0.00012882,2]
[336060696,1724683864089,-500.0,0.00012882,2]
[336060697,1724683864101,-520.89,0.00012882,2]
[336060698,1724683864110,-500.0,0.00012882,2]
[336060699,1724683864120,-500.0,0.00012882,2]
[336060700,1724683864129,-500.0,0.00012882,2]
[336060701,1724683864140,-151.0,0.00012882,2]
[336060702,1724683864152,-500.0,0.00012882,2]
[336060703,1724683864162,-708.09,0.00012882,2]
[336060704,1724683864171,-153.702674,0.00012882,2]
[336060705,1724683864180,-153.702674,0.00012882,2]
[336060706,1724683864190,-279.276805,0.00012882,2]
[336060707,1724683864200,-279.276805,0.00012882,2]
[336060708,1724683864210,-980.92,0.00012882,2]
[336060709,1724683864220,-2411.27,0.00012882,2]
[336060710,1724683864230,-500.0,0.00012882,2]
[336060711,1724683864240,-500.0,0.00012882,2]
[336060712,1724683864250,-826.02,0.00012882,2]
[336060713,1724683864259,-500.0,0.00012882,2]
[336060714,1724683864269,-1242.16,0.00012882,2]
[336060715,1724683864280,-500.0,0.00012882,2]
[336060716,1724683864289,-500.0,0.00012882,2]
[336060717,1724683864299,-867.27712,0.00012882,2]
[336060718,1724683864308,-867.27712,0.00012882,2]
[336060719,1724683864318,-500.0,0.00012882,2]
[336060720,1724683864328,-709.66,0.00012882,2]
[336060721,1724683864338,-500.0,0.00012882,2]
[336060722,1724683864351,-500.0,0.00012882,2]
[336060723,1724683864360,-568.45,0.00012882,2]
[336060724,1724683864369,-517.46,0.00012882,2]
[336060725,1724683864377,-500.0,0.00012882,2]
[336060726,1724683864386,-500.0,0.00012882,2]
[336060727,1724683864395,-1084.83,0.00012882,2]
[336060728,1724683864405,-500.0,0.00012882,2]
[336060729,1724683864414,-622.4,0.00012882,2]
[336060730,1724683864424,-490.089193,0.00012882,2]
[336060731,1724683864433,-569.51,0.00012882,2]
[336060732,1724683864442,-490.089193,0.00012882,2]
[336060733,1724683864451,-500.0,0.00012882,2]
[336060734,1724683864461,-500.0,0.00012882,2]
[336060735,1724683864470,-509.01,0.00012882,2]
[336060736,1724683864480,-500.0,0.00012882,2]
[336060737,1724683864490,-500.0,0.00012882,2]
[336060738,1724683864499,-568.93,0.00012882,2]
[336060739,1724683864511,-500.0,0.00012882,2]
[336060740,1724683864520,-618.11,0.00012882,2]
[336060741,1724683864529,-17001.40143137,0.00012882,2]
[336060747,1724683990942,-162.884709,0.00010845,2]
[336060748,1724683990965,-162.884709,0.00010876,2]
[336060749,1724683990986,-162.884709,0.00010907,2]
[336060750,1724683991008,-162.884709,0.00010939,2]
[336060751,1724683991030,-417.39,0.00010959,2]
[336060752,1724683991061,-546.429863,0.00010959,2]
[336060753,1724683991084,-162.884709,0.0001097,2]
[336060754,1724683991106,-162.884709,0.00011002,2]
[336060755,1724683991128,-162.884709,0.00011033,2]
[336060756,1724683991150,-162.884709,0.00011064,2]
[336060757,1724683991172,-162.884709,0.00011096,2]
[336060758,1724683991197,-162.884709,0.00011127,2]
[336060759,1724683991219,-162.884709,0.00011159,2]
[336060760,1724683991243,-162.884709,0.0001119,2]
[336060761,1724683991266,-162.884709,0.00011221,2]
[336060762,1724683991288,-162.884709,0.00011253,2]
[336060763,1724683991311,-162.884709,0.00011284,2]
[336060764,1724683991334,-162.884709,0.00011316,2]
[336060765,1724683991356,-162.884709,0.00011347,2]
[336060766,1724683991379,-162.884709,0.00011378,2]
[336060767,1724683991403,-162.884709,0.0001141,2]
[336060768,1724683991424,-500.0,0.00011511,2]
[336060769,1724683991452,-500.0,0.00011511,2]
[336060770,1724683991475,-300.0,0.00011511,2]
[336060771,1724683991497,-500.0,0.00011511,2]
[336060772,1724683991520,-500.0,0.00011511,2]
[336060773,1724683991542,-500.0,0.00011512,2]
[336060774,1724683991565,-500.0,0.00011512,2]
[336060775,1724683991588,-500.0,0.00011512,2]
[336060776,1724683991610,-291.370666,0.00011512,2]
[336060792,1724684777929,-150.0,0.000134,30]
[336060793,1724684778205,-616.91131317,0.000135,30]
[336060794,1724684787208,474.67337695,8.883e-05,2]
[336060795,1724684799279,188.34866886,8.883e-05,2]
[336060800,1724684829224,-300.0,9.846e-05,2]
[336060801,1724684829245,-300.0,9.846e-05,2]
[336060802,1724684829267,-629.55314398,9.846e-05,2]
[336060804,1724684839796,-1172.80089892,9.846e-05,2]
[336060805,1724684839820,-24900.0,9.847e-05,2]
[336060806,1724684839841,-10732.7632136,9.912e-05,2]
[336060807,1724684839865,-161.7865714,0.00010083,2]
[336060808,1724684839888,-853.9207672,0.00010163,2]
[336060809,1724684839911,-831.75123549,0.0001026,2]
[336060810,1724684839932,-934.47116226,0.0001026,2]
[336060811,1724684839954,-404.72731861,0.00010544,2]
[336060812,1724684839975,-818.13880886,0.00010544,2]
[336060813,1724684839995,-413.439327,0.00010959,2]
[336060814,1724684840016,-154.72922386,0.00011409,2]
[336060815,1724684840039,-154.72922386,0.00011409,2]
[336060816,1724684840059,-160.55819229,0.00011409,2]
[336060817,1724684840080,-1233.12750782,0.0001141,2]
[336060818,1724684840101,-172.66402829,0.00011412,2]
[336060819,1724684840123,-500.0,0.00011509,2]
[336060820,1724684840145,-522.61,0.00011509,2]
[336060821,1724684840168,-1927.46,0.00011509,2]
[336060822,1724684840189,-500.0,0.00011509,2]
[336060823,1724684840211,-500.0,0.00011509,2]
[336060824,1724684840232,-500.0,0.00011509,2]
[336060825,1724684840254,-525.59,0.00011509,2]
[336060826,1724684840276,-500.0,0.00011509,2]
[336060827,1724684840299,-500.0,0.00011509,2]
[336060828,1724684840320,-500.0,0.0001151,2]
[336060829,1724684840342,-513.36,0.0001151,2]
[336060830,1724684840363,-500.0,0.0001151,2]
[336060831,1724684840385,-500.0,0.0001151,2]
[336060832,1724684840407,-500.0,0.0001151,2]
[336060833,1724684840429,-500.0,0.0001151,2]
[336060834,1724684840451,-500.0,0.0001151,2]
[336060835,1724684840475,-500.0,0.0001151,2]
[336060836,1724684840497,-500.0,0.0001151,2]
[336060837,1724684840521,-176.92151473,0.0001151,2]
[336060840,1724684853761,-695.28989851,0.0001026,2]
[336060841,1724684853785,-554.75724304,0.00010739,2]
[336060842,1724684876490,1309.86966635,8.883e-05,2]
[336060843,1724684915912,821.17461397,8.883e-05,2]
[336060849,1724684967549,-1013.13032299,9.999e-05,2]
[336060850,1724684967571,-811.66749371,0.0001026,2]
[336060851,1724684967593,-163.1788941,0.00010544,2]
[336060852,1724684967618,-135.29918447,0.00010739,2]
[336060853,1724684968814,-25.58847915,0.00010739,2]
[336060854,1724684968836,-223.87298845,0.00010739,2]
[336060855,1724684968858,-818.13880886,0.00010739,2]
[336060856,1724684968880,-490.9110781,0.00010767,2]
[336060857,1724685002802,811.66749371,0.00010767,2]
[336060899,1724685032519,-300.0,0.00011508,2]
[336060901,1724685032533,-2016.72,0.00011509,2]
[336060903,1724685032542,-1233.9,0.00011509,2]
[336060905,1724685032553,-500.0,0.00011509,2]
[336060907,1724685032566,-500.0,0.00011509,2]
[336060909,1724685032577,-500.0,0.00011509,2]
[336060911,1724685032587,-500.0,0.00011509,2]
[336060913,1724685032598,-583.12,0.00011509,2]
[336060915,1724685032608,-500.0,0.00011509,2]
[336060917,1724685032618,-500.0,0.00011509,2]
[336060918,1724685032627,-500.0,0.00011509,2]
[336060921,1724685032642,-500.0,0.00011509,2]
[336060923,1724685032651,-553.52,0.00011509,2]
[336060925,1724685032661,-500.0,0.00011509,2]
[336060927,1724685032670,-500.0,0.00011509,2]
[336060929,1724685032680,-500.0,0.00011509,2]
[336060931,1724685032691,-1711.9,0.00011509,2]
[336060933,1724685032702,-500.0,0.00011509,2]
[336060935,1724685032714,-500.84,0.00011509,2]
[336060937,1724685032732,-500.0,0.00011509,2]
[336060939,1724685032749,-528.45,0.00011509,2]
[336060941,1724685032759,-1847.15,0.00011509,2]
[336060943,1724685032772,-500.0,0.00011509,2]
[336060945,1724685032783,-500.0,0.00011509,2]
[336060947,1724685032793,-534.16,0.00011509,2]
[336060949,1724685032803,-500.0,0.00011509,2]
[336060951,1724685032816,-500.0,0.00011509,2]
[336060953,1724685032826,-500.0,0.00011509,2]
[336060955,1724685032837,-500.0,0.00011509,2]
[336060957,1724685032848,-503.69,0.00011509,2]
[336060959,1724685032858,-111.3594519,0.00011509,2]
[336060962,1724685032872,-388.6405481,0.00011509,2]
[336060964,1724685032883,-500.0,0.00011509,2]
[336060966,1724685032894,-500.0,0.00011509,2]
[336060968,1724685032903,-323.07848527,0.0001151,2]
[336060970,1724685032912,-500.0,0.0001151,2]
[336060971,1724685032922,-538.72,0.0001151,2]
[336060973,1724685032931,-500.0,0.0001151,2]
[336060975,1724685032940,-500.0,0.0001151,2]
[336060977,1724685032949,-500.0,0.0001151,2]
[336060979,1724685032958,-500.0,0.0001151,2]
[336060981,1724685032967,-859.08,0.0001151,2]
[336060983,1724685032977,-500.0,0.0001151,2]
[336060985,1724685032986,-500.0,0.0001151,2]
[336060987,1724685032995,-500.0,0.0001151,2]
[336060989,1724685033004,-500.0,0.0001151,2]
[336060991,1724685033013,-500.0,0.0001151,2]
[336060993,1724685033022,-500.0,0.0001151,2]
[336060995,1724685033031,-500.0,0.0001151,2]
[336060997,1724685033040,-500.0,0.0001151,2]
[336060999,1724685033050,-500.0,0.0001151,2]
[336061001,1724685033061,-500.0,0.0001151,2]
[336061003,1724685033070,-500.0,0.0001151,2]
[336061005,1724685033079,-500.71222381,0.0001151,2]
[336061007,1724685033090,-500.0,0.0001151,2]
[336061009,1724685033099,-500.0,0.0001151,2]
[336061010,1724685033108,-500.0,0.0001151,2]
[336061012,1724685033117,-500.0,0.0001151,2]
[336061013,1724685033126,-500.0,0.0001151,2]
[336061015,1724685033136,-500.0,0.0001151,2]
[336061017,1724685033146,-500.0,0.0001151,2]
[336061018,1724685033155,-500.0,0.0001151,2]
[336061019,1724685033163,-500.0,0.0001151,2]
[336061021,1724685033172,-500.0,0.0001151,2]
[336061023,1724685033182,-500.0,0.0001151,2]
[336061024,1724685033191,-500.0,0.0001151,2]
[336061025,1724685033200,-500.0,0.0001151,2]
[336061026,1724685033210,-788.41,0.0001151,2]
[336061027,1724685033219,-500.0,0.0001151,2]
[336061028,1724685033228,-500.0,0.0001151,2]
[336061029,1724685033237,-501.27599145,0.0001151,2]
[336061030,1724685033247,-874.03,0.0001151,2]
[336061031,1724685033256,-500.0,0.0001151,2]
[336061032,1724685033265,-500.0,0.0001151,2]
[336061033,1724685033274,-206.16780181,0.0001151,2]
[336061034,1724685033283,-500.97852574,0.0001151,2]
[336061035,1724685033292,-506.53764719,0.0001151,2]
[336061036,1724685033301,-506.34,0.0001151,2]
[336061037,1724685033311,-501.6115952,0.0001151,2]
[336061038,1724685033320,-412.26580243,0.0001151,2]
[336061048,1724685038671,-87.73419757,0.0001151,2]
[336061049,1724685038681,-500.0,0.0001151,2]
[336061050,1724685038690,-500.0,0.0001151,2]
[336061051,1724685038700,-502.47773339,0.0001151,2]
[336061052,1724685038709,-504.34,0.0001151,2]
[336061053,1724685038718,-500.0,0.0001151,2]
[336061054,1724685038727,-500.0,0.0001151,2]
[336061055,1724685038736,-500.0,0.0001151,2]
[336061056,1724685038746,-507.0,0.0001151,2]
[336061057,1724685038755,-500.0,0.0001151,2]
[336061058,1724685038764,-500.0,0.0001151,2]
[336061059,1724685038774,-500.0,0.0001151,2]
[336061060,1724685038783,-500.0,0.0001151,2]
[336061061,1724685038792,-500.0,0.0001151,2]
[336061062,1724685038802,-500.0,0.0001151,2]
[336061063,1724685038812,-500.0,0.0001151,2]
[336061064,1724685038826,-500.0,0.0001151,2]
[336061065,1724685038835,-751.37,0.0001151,2]
[336061066,1724685038845,-500.0,0.0001151,2]
[336061067,1724685038855,-500.0,0.0001151,2]
[336061068,1724685038866,-500.0,0.0001151,2]
[336061069,1724685038876,-515.17,0.0001151,2]
[336061070,1724685038886,-500.0,0.0001151,2]
[336061071,1724685038896,-500.0,0.0001151,2]
[336061072,1724685038906,-500.0,0.0001151,2]
[336061073,1724685038915,-501.87301085,0.0001151,2]
[336061074,1724685038925,-500.0,0.0001151,2]
[336061075,1724685038934,-500.0,0.0001151,2]
[336061076,1724685038944,-550.11,0.0001151,2]
[336061077,1724685038953,-500.0,0.0001151,2]
[336061078,1724685038962,-500.0,0.0001151,2]
[336061079,1724685038972,-500.0,0.0001151,2]
[336061080,1724685038981,-500.0,0.0001151,2]
[336061081,1724685038991,-500.0,0.0001151,2]
[336061082,1724685039001,-500.0,0.0001151,2]
[336061083,1724685039012,-500.0,0.0001151,2]
[336061084,1724685039021,-500.0,0.0001151,2]
[336061085,1724685039031,-745.64,0.0001151,2]
[336061086,1724685039040,-500.0,0.0001151,2]
[336061087,1724685039049,-500.0,0.0001151,2]
[336061088,1724685039059,-500.0,0.0001151,2]
[336061089,1724685039071,-500.0,0.0001151,2]
[336061090,1724685039080,-500.0,0.0001151,2]
[336061091,1724685039090,-500.0,0.0001151,2]
[336061092,1724685039100,-500.0,0.0001151,2]
[336061093,1724685039110,-500.0,0.0001151,2]
[336061094,1724685039120,-500.57871281,0.0001151,2]
[336061095,1724685039130,-500.0,0.0001151,2]
[336061096,1724685039140,-1263.82,0.0001151,2]
[336061097,1724685039150,-500.0,0.0001151,2]